Workbook

Sheet Fuel Calculation
A1: Fuel Consumption Calculation | M1: V
A2: 1. Payload-Range Diagram Information | Q2: Calculations
A3: As default, this table works with two iterations. This requires Iterations to be enabled in the Options. The table can easily be modified to work without iterations. See on right under "Calculations".
R4: Section | S4: Take-off Mass, approx. | U4: Landing Mass, approx. | W4: Breguet factor, approx. [km] | X4: Landing Mass, iteration | Y4: Take-off Mass | Z4: Fuel Mass | AA4: Payload | AB4: Pax (cargo first) | AC4: Pax (parallel) | AD4: Additional fuel mass | AE4: Equations without iteration
E5: Payload-Range Diagram | R5: 1 | T5: =m_MZF+((m_MTO-m_MZF)/(R_A-0))*(RR-0) -> 280000 | V5: =m_MZF -> 195700 | W5: =RR/LN($T5/V5) -> 30429.3558 | X5: =m_MZF+m_Fres -> 204158.8158 | Y5: =(m_MZF+m_Fres+m_FnonCruise)+((m_MTO-(m_MZF+m_Fres+m_FnonCruise))/(R_A-0))*(RR-0) -> 280000 | Z5: =Y5-X5 -> 75841.18415 | AA5: =m_PLA -> 53000 | AB5: =IF(AA5<n_Pax*m_Pax,AA5/m_Pax,n_Pax) -> 315 | AC5: =IF(AA5<n_Pax*m_Pax,AA5/m_Pax,n_Pax) -> 315 | AD5: =Y5*(1-M_ffNonCruise) -> 7977.326085 | AE5: =T5*(1-M_ffNonCruise)
R6: 2 | T6: =m_MTO -> 280000 | V6: =m_MZF+(((m_OE+m_PLB)-m_MZF)/(R_B-R_A))*(RR-R_A) -> 195700 | W6: =RR/LN($T6/V6) -> 30429.3558 | X6: =(m_MZF+m_Fres)+(((m_OE+m_PLB)-(m_MZF))/(R_B-R_A))*(RR-R_A) -> 204158.8158 | Y6: =m_MTO -> 280000 | Z6: =Y6-X6 -> 75841.18415 | AA6: =m_PLA+((m_PLB-m_PLA)/(R_B-R_A))*(RR-R_A) -> 53000 | AB6: =IF(AA6<n_Pax*m_Pax,AA6/m_Pax,n_Pax) -> 315 | AC6: =n_Pax+((n_PaxB-n_Pax)/(R_B-R_A))*(RR-R_A) -> 315 | AD6: =Y6*(1-M_ffNonCruise) -> 7977.326085 | AE6: =T6*(1-M_ffNonCruise)
C7: Mass | R7: 3 | T7: =m_MTO+(((m_OE+m_MF)-m_MTO)/(R_C-R_B))*(RR-R_B) -> 343750 | V7: =(m_OE+m_PLB)+((m_OE-(m_OE+m_PLB))/(R_C-R_B))*(RR-R_B) -> 231450 | W7: =RR/LN($T7/V7) -> 27556.51236 | X7: =(m_OE+m_PLB+m_Fres)+((m_OE-(m_OE+m_PLB))/(R_C-R_B))*(RR-R_B) -> 239908.8158 | Y7: =m_MTO+(((m_OE+m_MF)-m_MTO)/(R_C-R_B))*(RR-R_B) -> 343750 | Z7: =Y7-X7 -> 103841.1842 | AA7: =m_PLB+((0-m_PLB)/(R_C-R_B))*(RR-R_B) -> 88750 | AB7: =IF(AA7<n_Pax*m_Pax,AA7/m_Pax,n_Pax) -> 315 | AC7: =n_PaxB+((0-n_PaxB)/(R_C-R_B))*(RR-R_B) -> 527.4764151 | AD7: =Y7*(1-M_ffNonCruise) -> 9793.592292 | AE7: =T7*(1-M_ffNonCruise)
N8: Unit Conversion
R9: active section | S9: Actual Take-off Mass, approx. | U9: Actual Landing Mass, approx. | W9: Actual Breguet factor, approx. | X9: Act. Landing Mass, iter. | Y9: Act.Take-off Mass | Z9: Actual Fuel Mass | AA9: Actual Payload | AB9: Actual Pax (cargo first) | AC9: Actual Pax (parallel) | AD9: Actual add. fuel mass
N10: Mass | R10: =IF(RR>R_B,3,IF(AND(RR>R_A,RR<=R_B),2,1)) -> 1 | T10: =IF(R10=1,T5,IF(R10=2,T6,T7)) -> 280000 | V10: =IF($R$10=1,V5,IF($R$10=2,V6,V7)) -> 195700 | W10: 30429.3558 | X10: 204158.8158 | Y10: 280000 | Z10: =Y10-X10 -> 75841.18415 | AA10: =IF(R10=1,AA5,IF(R10=2,AA6,AA7)) -> 53000 | AB10: =IF(R10=1,AB5,IF(R10=2,AB6,AB7)) -> 315 | AC10: =IF(R10=1,AC5,IF(R10=2,AC6,AC7)) -> 315 | AD10: =IF($R$10=1,AD5,IF($R$10=2,AD6,AD7)) -> 7977.326085
U11: Total reserve fuel, approximation | X11: Total reserve fuel, iter. | Y11: Equation without iteration
N12: lb = | O12: =0.454*M12 -> 0 | P12: kg | W12: =V10*(EXP(R_resTotal/B) - 1) -> 8108.345723 | X12: =X10*(EXP(R_resTotal/B) - 1) -> 8458.815847 | Y12: = V10*(EXP(R_resTotal/B) - 1)
R13: Calculation of reserve distance
B14: Max. Payload | C14: 53000 | N14: kg = | O14: =2.2*M14 -> 0 | P14: lb | R14: Assumed switch VMO/MMO | T14: 25000 | U14: ft | V14: Seat interpolation in parallel for point B | X14: =(m_PLB/m_PLA)*n_Pax -> 148.5849057 | Z14: Fuel Overhead Approximation
C15: kg | R15: ="Temperature at "&T14&" ft" -> Temperature at 25000 ft | T15: =T0-L*h_switch -> 238.619675 | U15: K | Z15: =Z10-m_FnonCruise -> 67863.85807 | AA15: kg
N16: Range | R16: ="Speed of sound at "&T14&" ft" -> Speed of sound at 25000 ft | T16: =a0*SQRT(T_switch/T0) -> 309.665626 | U16: m/s | V16: Definition of constants
R17: Assumed altitude for loiter | T17: 1500 | U17: ft | V17: ISA temperature at sea level, T0 | X17: 288.15 | Y17: K
B18: Payload, B | C18: 25000 | N18: nm = | O18: =1.852*M18 -> 0 | P18: km | R18: ="Temperature at "&T17&" ft" -> Temperature at 1500 ft | T18: =IF(h_loiter<=h_tropopause,T0-L*h_loiter,T_tropopause) -> 285.1781805 | U18: K | V18: Temperature gradient, L | X18: =0.001981213 -> 0.001981213 | Y18: K/ft
C19: kg | R19: ="Speed of sound at "&T17&" ft" -> Speed of sound at 1500 ft | T19: =a0*SQRT(T_loiter/T0) -> 338.5306708 | U19: m/s | V19: Speed of sound at sea level, a0 | X19: =340.29 -> 340.29 | Y19: m/s
N20: km = | O20: =0.54*M20 -> 0 | P20: nm | R20: Speed at loiter, % of cruise speed | T20: 0.7 | V20: Altitude of tropopause | X20: 36089 | Y20: ft
R21: Speed at loiter | T21: =IF(h_loiter<h_switch,a_switch*M_CR*VloiterToVcruise,IF(h_loiter<h_tropopause,a_loiter*M_CR*VloiterToVcruise,a_tropopause*M_CR*VloiterToVcruise)) -> 177.7480693 | U21: m/s | V21: Temperature at tropopause | X21: 216.65 | Y21: K/ft
R22: Distance in loiter | T22: =t_reserve*60*V_loiter/1000 -> 319.9465248 | U22: km | V22: Speed of sound at tropopause | X22: 295.07 | Y22: m/s
R23: Reserve distance | T23: =IF(L35=1,RR*ResOnDist+R_alt,R_alt) -> 915.4 | U23: km | V23: Earth acceleration, g | X23: 9.81 | Y23: m/s²
R24: Total reserve distance | T24: =R_res+R_loiter -> 1235.346525 | U24: km | V24: Conversion: ft in m | X24: 0.3048 | Y24: m/ft
E25: Range, A | F25: 10900 | G25: Range, B | H25: 16000 | I25: Range, C | J25: 18000 | K25: km | L25: Range
A27: 2. Input: Manufacturer's Specification, Cabin Configuration, Reserve Fuel, Non-Cruise Phases | Q27: Mission Segment Mass Fractions (MSMF) | W27: Lost Energy Correction to the Overhead Approximation (ESDU 74018 via Young)
B29: Maximum Take-off Mass | D29: 280000 | E29: kg | G29: Cabin Seats | I29: 315 | M29: Fuel due to non-cruise flight via Mission Segment Mass Fractions
L30: 2 | R30: Roskam | S30: Niţă | T30: Young | U30: ESDU/Niţă | W30: Cruise altitude | X30: 39000 | Y30: ft
B31: Maximum Zero Fuel Mass | D31: 195700 | E31: kg | G31: Passenger Mass | I31: 95 | J31: kg | M31: Take-off | N31: 0.9928 | Q31: Take-off | R31: 0.995 | S31: 0.9928 | T31: 0.996 | U31: =S31 -> 0.9928 | W31: ="Temperature at "&X30&" ft" -> Temperature at 39000 ft | X31: =IF(h_CR<=h_tropopause,T0-L*h_CR,T_tropopause) -> 216.65 | Y31: K
M32: Climb | N32: 0.9928 | Q32: Climb | R32: 0.98 | S32: 0.9928 | T32: 0.979 | U32: =X37 -> 0.9951648127 | W32: ="Speed of sound at "&X30&" ft" -> Speed of sound at 39000 ft | X32: =a0*SQRT(T_CR/T0) -> 295.0660355 | Y32: m/s
B33: Maximum Fuel Mass | D33: =m_MTO-(m_OE+m_PLB) -> 112300 | E33: kg | G33: Range (for single calculation) | I33: 10900 | J33: km | M33: Descent | N33: 0.9928 | O33: <<<<<< | P33: <<<<<< | Q33: Descent | R33: 0.99 | S33: 0.9928 | T33: 0.9975 | U33: =X37 -> 0.9951648127 | W33: ="Cruise speed at "&X30&" ft" -> Cruise speed at 39000 ft | X33: =IF(h_CR<h_switch,a_switch*M_CR,IF(h_CR<h_tropopause,a_CR*M_CR,a_tropopause*M_CR)) -> 241.9574 | Y33: m/s
I34: 10000 | M34: Landing | N34: 0.9928 | Q34: Landing | R34: 0.992 | S34: 0.9928 | T34: 0.997 | U34: =S34 -> 0.9928 | W34: Specific Fuel Consumption | X34: 1.6e-05 | Y34: kg/(Ns)
B35: Operation Empty Mass | D35: =D31-C14 -> 142700 | E35: kg | G35: Distance to alternate | I35: 370.4 | J35: km | L35: 1 | M35: Total | N35: =N31*N32*N33*N33 -> 0.9715095497 | Q35: Total | R35: =R31*R32*R33*R34 -> 0.957626208 | S35: =S31*S32*S33*S34 -> 0.9715095497 | T35: =T31*T32*T33*T34 -> 0.9697283511 | U35: =U31*U32*U33*U34 -> 0.976143261 | W35: ESDU emperical factor, k1 | X35: 1
M36: Fuel mass | N36: =AD10 -> 7977.326085 | O36: kg | Q36: Average | R36: =AVERAGE(R35:U35) -> 0.9687518425 | W36: Additional fuel mass / m_MTO | X36: =k_1*(h_CR*ft_in_m+V_CR^2/2/g)*g/V_CR*c_T -> 0.009646995625
B37: Mach number in cruise | D37: 0.82 | G37: Reserves on distance | I37: 0.05 | M37: Equiv. distance | N37: =-B*LN(M_ffNonCruise) -> 879.5355885 | O37: km | W37: MSMF for Climb and for Descent | X37: =SQRT(1-X36) -> 0.9951648127
A39: 3. Calculation of Graphs
B41: Plot from Range | C41: 300 | D41: km
B43: Plot to Range | C43: 17000 | D43: km | I43: 1
B45: Plotting Interval | C45: 100 | D45: km
A47: ="4. Results: Fuel consumption on " & I33 & " km range" -> 4. Results: Fuel consumption on 10900 km range | Q47: Data for Graphs
Q48: Range [km] | R48: Fuel Non-Cr. | S48: Fuel Res. [kg] | T48: Breguet [km] | U48: Fuel/Range/Pax | V48: Landing Mass | W48: Take-Off Mass [kg] | X48: Fuel [kg] | Y48: Fuel Overhead [kg] | Z48: Payload [kg] | AA48: Pax, cargo first | AC48: Pax, parallel | AE48: Fuel/Range [kg/km] | AG48: Fuel/Payload [kg/kg]
B49: Reserve distance | D49: =T23 -> 915.4 | E49: km | F49: Fuel per Range & Pax | H49: =IF(L30=1,m_F/RR/n_PaxCargoFirst*100,m_F/RR/n_PaxParallel*100) -> 2.208859303 | I49: kg/100km per pax | Q49: 300 | R49: 5963.673475 | S49: 5657.841062 | T49: 25453.73856 | U49: 8.427511919 | V49: 201357.8411 | W49: 209321.8398 | X49: 7963.998763 | Y49: 2000.325288 | Z49: 53000 | AA49: 315 | AC49: 315 | AE49: 26.54666254 | AG49: 0.1502641276
Q50: 400 | R50: 5984.05982 | S50: 5688.087814 | T50: 25503.51041 | U50: 6.864525483 | V50: 201388.0878 | W50: 210037.3899 | X50: 8649.302108 | Y50: 2665.242289 | Z50: 53000 | AA50: 315 | AC50: 315 | AE50: 21.62325527 | AG50: 0.1631943794
B51: Reserve time | D51: =IF(L35=1,30,45) -> 30 | E51: minutes | F51: Fuel per Range | H51: =m_F/RR -> 6.957906803 | I51: kg/km | Q51: 500 | R51: 6004.416455 | S51: 5718.245072 | T51: 25553.21793 | U51: 5.926128358 | V51: 201418.2451 | W51: 210751.8972 | X51: 9333.652165 | Y51: 3329.23571 | Z51: 53000 | AA51: 315 | AC51: 315 | AE51: 18.66730433 | AG51: 0.1761066446
Q52: 600 | R52: 6024.743494 | S52: 5748.313446 | T52: 25602.86148 | U52: 5.300027664 | V52: 201448.3134 | W52: 211465.3657 | X52: 10017.05229 | Y52: 3992.308792 | Z52: 53000 | AA52: 315 | AC52: 315 | AE52: 16.69508714 | AG52: 0.1890009865
B53: Reserves fuel (from dist. & time) | D53: =X12 -> 8458.815847 | E53: kg | F53: Fuel per Payload | H53: =m_F/m_PL -> 1.430965739 | I53: kg/kg | Q53: 700 | R53: 6045.041048 | S53: 5778.293543 | T53: 25652.44144 | U53: 4.852383582 | V53: 201478.2935 | W53: 212177.7993 | X53: 10699.5058 | Y53: 4654.464751 | Z53: 53000 | AA53: 315 | AC53: 315 | AE53: 15.28500828 | AG53: 0.2018774679
Q54: 800 | R54: 6065.309229 | S54: 5808.185961 | T54: 25701.95818 | U54: 4.516276192 | V54: 201508.186 | W54: 212889.202 | X54: 11381.016 | Y54: 5315.706775 | Z54: 53000 | AA54: 315 | AC54: 315 | AE54: 14.22627001 | AG54: 0.214736151
B55: Used fuel for this trip | D55: =Z10 -> 75841.18415 | E55: kg | Q55: 900 | R55: 6085.548147 | S55: 5837.991292 | T55: 25751.41205 | U55: 4.254527751 | V55: 201537.9913 | W55: 213599.5775 | X55: 12061.58617 | Y55: 5976.038028 | Z55: 53000 | AA55: 315 | AC55: 315 | AE55: 13.40176242 | AG55: 0.2275770976
Q56: 1000 | R56: 6105.757911 | S56: 5867.710123 | T56: 25800.80342 | U56: 4.044831606 | V56: 201567.7101 | W56: 214308.9297 | X56: 12741.21956 | Y56: 6635.461648 | Z56: 53000 | AA56: 315 | AC56: 315 | AE56: 12.74121956 | AG56: 0.240400369
Q57: 1100 | R57: 6125.938629 | S57: 5897.343034 | T57: 25850.13264 | U57: 3.872992606 | V57: 201597.343 | W57: 215017.2624 | X57: 13419.91938 | Y57: 7293.98075 | Z57: 53000 | AA57: 315 | AC57: 315 | AE57: 12.19992671 | AG57: 0.253206026
B58: Fuel per Range & Pax vs Range | Q58: 1200 | R58: 6146.09041 | S58: 5926.890599 | T58: 25899.40007 | U58: 3.72954731 | V58: 201626.8906 | W58: 215724.5794 | X58: 14097.68883 | Y58: 7951.598421 | Z58: 53000 | AA58: 315 | AC58: 315 | AE58: 11.74807403 | AG58: 0.2659941289
Q59: 1300 | R59: 6166.213358 | S59: 5956.353385 | T59: 25948.60605 | U59: 3.607944099 | V59: 201656.3534 | W59: 216430.8845 | X59: 14774.53109 | Y59: 8608.317728 | Z59: 53000 | AA59: 315 | AC59: 315 | AE59: 11.36502391 | AG59: 0.2787647375
Q60: 1400 | R60: 6186.307581 | S60: 5985.731954 | T60: 25997.75092 | U60: 3.503503241 | V60: 201685.732 | W60: 217136.1812 | X60: 15450.44929 | Y60: 9264.141711 | Z60: 53000 | AA60: 315 | AC60: 315 | AE60: 11.03603521 | AG60: 0.2915179112
Q61: 1500 | R61: 6206.373183 | S61: 6015.026864 | T61: 26046.83504 | U61: 3.412792925 | V61: 201715.0269 | W61: 217840.4734 | X61: 16125.44657 | Y61: 9919.073388 | Z61: 53000 | AA61: 315 | AC61: 315 | AE61: 10.75029771 | AG61: 0.3042537089
Q62: 1600 | R62: 6226.410267 | S62: 6044.238663 | T62: 26095.85874 | U62: 3.33323929 | V62: 201744.2387 | W62: 218543.7647 | X62: 16799.52602 | Y62: 10573.11575 | Z62: 53000 | AA62: 315 | AC62: 315 | AE62: 10.49970376 | AG62: 0.3169721891
Q63: 1700 | R63: 6246.418937 | S63: 6073.367897 | T63: 26144.82235 | U63: 3.262874083 | V63: 201773.3679 | W63: 219246.0586 | X63: 17472.69072 | Y63: 11226.27178 | Z63: 53000 | AA63: 315 | AC63: 315 | AE63: 10.27805336 | AG63: 0.3296734097
Q64: 1800 | R64: 6266.399296 | S64: 6102.415105 | T64: 26193.72621 | U64: 3.200166439 | V64: 201802.4151 | W64: 219947.3588 | X64: 18144.94371 | Y64: 11878.54441 | Z64: 53000 | AA64: 315 | AC64: 315 | AE64: 10.08052428 | AG64: 0.3423574284
Q65: 1900 | R65: 6286.351444 | S65: 6131.38082 | T65: 26242.57065 | U65: 3.143907773 | V65: 201831.3808 | W65: 220647.6688 | X65: 18816.28802 | Y65: 12529.93658 | Z65: 53000 | AA65: 315 | AC65: 315 | AE65: 9.903309485 | AG65: 0.3550243023
Q66: 2000 | R66: 6306.275482 | S66: 6160.265571 | T66: 26291.356 | U66: 3.093131217 | V66: 201860.2656 | W66: 221346.9922 | X66: 19486.72667 | Y66: 13180.45118 | Z66: 53000 | AA66: 315 | AC66: 315 | AE66: 9.743363333 | AG66: 0.367674088
Q67: 2100 | R67: 6326.171511 | S67: 6189.069879 | T67: 26340.08257 | U67: 3.047054062 | V67: 201889.0699 | W67: 222045.3325 | X67: 20156.26262 | Y67: 13830.09111 | Z67: 53000 | AA67: 315 | AC67: 315 | AE67: 9.598220295 | AG67: 0.3803068419
Q68: 2200 | R68: 6346.039629 | S68: 6217.794264 | T68: 26388.75069 | U68: 3.005035908 | V68: 201917.7943 | W68: 222742.6931 | X68: 20824.89884 | Y68: 14478.85921 | Z68: 53000 | AA68: 315 | AC68: 315 | AE68: 9.46586311 | AG68: 0.3929226197
Q69: 2300 | R69: 6365.879934 | S69: 6246.439236 | T69: 26437.36068 | U69: 2.966547726 | V69: 201946.4392 | W69: 223439.0775 | X69: 21492.63827 | Y69: 15126.75834 | Z69: 53000 | AA69: 315 | AC69: 315 | AE69: 9.344625337 | AG69: 0.4055214769
Q70: 2400 | R70: 6385.692524 | S70: 6275.005303 | T70: 26485.91285 | U70: 2.931148655 | V70: 201975.0053 | W70: 224134.4891 | X70: 22159.48383 | Y70: 15773.7913 | Z70: 53000 | AA70: 315 | AC70: 315 | AE70: 9.233118262 | AG70: 0.4181034685
Q71: 2500 | R71: 6405.477496 | S71: 6303.492967 | T71: 26534.40752 | U71: 2.898468368 | V71: 202003.493 | W71: 224828.9314 | X71: 22825.4384 | Y71: 16419.9609 | Z71: 53000 | AA71: 315 | AC71: 315 | AE71: 9.13017536 | AG71: 0.430668649
Q72: 2600 | R72: 6425.234946 | S72: 6331.902724 | T72: 26582.84498 | U72: 2.868193512 | V72: 202031.9027 | W72: 225522.4076 | X72: 23490.50486 | Y72: 17065.26991 | Z72: 53000 | AA72: 315 | AC72: 315 | AE72: 9.034809561 | AG72: 0.4432170728
Q73: 2700 | R73: 6444.964969 | S73: 6360.235068 | T73: 26631.22555 | U73: 2.84005715 | V73: 202060.2351 | W73: 226214.9211 | X73: 24154.68606 | Y73: 17709.72109 | Z73: 53000 | AA73: 315 | AC73: 315 | AE73: 8.946180022 | AG73: 0.4557487936
Q74: 2800 | R74: 6464.667659 | S74: 6388.490485 | T74: 26679.54954 | U74: 2.81383048 | V74: 202088.4905 | W74: 226906.4753 | X74: 24817.98483 | Y74: 18353.31717 | Z74: 53000 | AA74: 315 | AC74: 315 | AE74: 8.863566012 | AG74: 0.4682638648
Q75: 2900 | R75: 6484.34311 | S75: 6416.669457 | T75: 26727.81724 | U75: 2.789316255 | V75: 202116.6695 | W75: 227597.0734 | X75: 25480.40399 | Y75: 18996.06088 | Z75: 53000 | AA75: 315 | AC75: 315 | AE75: 8.786346202 | AG75: 0.4807623394
Q76: 3000 | R76: 6503.991416 | S76: 6444.772462 | T76: 26776.02895 | U76: 2.766343525 | V76: 202144.7725 | W76: 228286.7188 | X76: 26141.94631 | Y76: 19637.9549 | Z76: 53000 | AA76: 315 | AC76: 315 | AE76: 8.713982104 | AG76: 0.49324427
Q77: 3100 | R77: 6523.612669 | S77: 6472.799973 | T77: 26824.18496 | U77: 2.744763398 | V77: 202172.8 | W77: 228975.4146 | X77: 26802.61458 | Y77: 20279.00191 | Z77: 53000 | AA77: 315 | AC77: 315 | AE77: 8.646004703 | AG77: 0.505709709
Q78: 3200 | R78: 6543.206961 | S78: 6500.752458 | T78: 26872.28557 | U78: 2.724445589 | V78: 202200.7525 | W78: 229663.164 | X78: 27462.41153 | Y78: 20919.20457 | Z78: 53000 | AA78: 315 | AC78: 315 | AE78: 8.582003605 | AG78: 0.5181587082
Q79: 3300 | R79: 6562.774381 | S79: 6528.630381 | T79: 26920.33107 | U79: 2.705275605 | V79: 202228.6304 | W79: 230349.9703 | X79: 28121.33991 | Y79: 21558.56553 | Z79: 53000 | AA79: 315 | AC79: 315 | AE79: 8.521618155 | AG79: 0.5305913191
Q80: 3400 | R80: 6582.315022 | S80: 6556.434202 | T80: 26968.32175 | U80: 2.68715242 | V80: 202256.4342 | W80: 231035.8366 | X80: 28779.40242 | Y80: 22197.0874 | Z80: 53000 | AA80: 315 | AC80: 315 | AE80: 8.464530124 | AG80: 0.5430075928
B81: Fuel per Range vs Range | Q81: 3500 | R81: 6601.828972 | S81: 6584.164374 | T81: 27016.25789 | U81: 2.669986553 | V81: 202284.1644 | W81: 231720.7661 | X81: 29436.60175 | Y81: 22834.77278 | Z81: 53000 | AA81: 315 | AC81: 315 | AE81: 8.410457643 | AG81: 0.5554075802
Q82: 3600 | R82: 6621.31632 | S82: 6611.821349 | T82: 27064.13977 | U82: 2.653698464 | V82: 202311.8213 | W82: 232404.7619 | X82: 30092.94058 | Y82: 23471.62426 | Z82: 53000 | AA82: 315 | AC82: 315 | AE82: 8.35915016 | AG82: 0.5677913316
Q83: 3700 | R83: 6640.777155 | S83: 6639.405572 | T83: 27111.96768 | U83: 2.638217207 | V83: 202339.4056 | W83: 233087.8271 | X83: 30748.42155 | Y83: 24107.6444 | Z83: 53000 | AA83: 315 | AC83: 315 | AE83: 8.310384203 | AG83: 0.5801588972
Q84: 3800 | R84: 6660.211565 | S84: 6666.917486 | T84: 27159.74189 | U84: 2.623479307 | V84: 202366.9175 | W84: 233769.9648 | X84: 31403.04731 | Y84: 24742.83574 | Z84: 53000 | AA84: 315 | AC84: 315 | AE84: 8.263959818 | AG84: 0.5925103266
Q85: 3900 | R85: 6679.619636 | S85: 6694.357528 | T85: 27207.46268 | U85: 2.609427795 | V85: 202394.3575 | W85: 234451.178 | X85: 32056.82047 | Y85: 25377.20083 | Z85: 53000 | AA85: 315 | AC85: 315 | AE85: 8.219697556 | AG85: 0.6048456692
Q86: 4000 | R86: 6699.001454 | S86: 6721.726131 | T86: 27255.13031 | U86: 2.596011399 | V86: 202421.7261 | W86: 235131.4698 | X86: 32709.74362 | Y86: 26010.74217 | Z86: 53000 | AA86: 315 | AC86: 315 | AE86: 8.177435906 | AG86: 0.6171649741
Q87: 4100 | R87: 6718.357106 | S87: 6749.023725 | T87: 27302.74507 | U87: 2.583183845 | V87: 202449.0237 | W87: 235810.8431 | X87: 33361.81936 | Y87: 26643.46226 | Z87: 53000 | AA87: 315 | AC87: 315 | AE87: 8.137029113 | AG87: 0.6294682899
Q88: 4200 | R88: 6737.686677 | S88: 6776.250735 | T88: 27350.30722 | U88: 2.570903269 | V88: 202476.2507 | W88: 236489.301 | X88: 34013.05024 | Y88: 27275.36357 | Z88: 53000 | AA88: 315 | AC88: 315 | AE88: 8.098345296 | AG88: 0.641755665
Q89: 4300 | R89: 6756.990251 | S89: 6803.407583 | T89: 27397.81702 | U89: 2.559131695 | V89: 202503.4076 | W89: 237166.8464 | X89: 34663.43881 | Y89: 27906.44856 | Z89: 53000 | AA89: 315 | AC89: 315 | AE89: 8.06126484 | AG89: 0.6540271474
Q90: 4400 | R90: 6776.267912 | S90: 6830.494685 | T90: 27445.27473 | U90: 2.547834603 | V90: 202530.4947 | W90: 237843.4823 | X90: 35312.9876 | Y90: 28536.71969 | Z90: 53000 | AA90: 315 | AC90: 315 | AE90: 8.025678999 | AG90: 0.6662827849
Q91: 4500 | R91: 6795.519744 | S91: 6857.512456 | T91: 27492.68063 | U91: 2.536980537 | V91: 202557.5125 | W91: 238519.2116 | X91: 35961.69911 | Y91: 29166.17937 | Z91: 53000 | AA91: 315 | AC91: 315 | AE91: 7.991488691 | AG91: 0.6785226247
Q92: 4600 | R92: 6814.745829 | S92: 6884.461305 | T92: 27540.03497 | U92: 2.526540776 | V92: 202584.4613 | W92: 239194.0372 | X92: 36609.57585 | Y92: 29794.83002 | Z92: 53000 | AA92: 315 | AC92: 315 | AE92: 7.958603445 | AG92: 0.6907467141
Q93: 4700 | R93: 6833.946249 | S93: 6911.341637 | T93: 27587.338 | U93: 2.516489043 | V93: 202611.3416 | W93: 239867.9619 | X93: 37256.62028 | Y93: 30422.67403 | Z93: 53000 | AA93: 315 | AC93: 315 | AE93: 7.926940485 | AG93: 0.7029550996
Q94: 4800 | R94: 6853.121086 | S94: 6938.153856 | T94: 27634.58998 | U94: 2.506801248 | V94: 202638.1539 | W94: 240540.9887 | X94: 37902.83487 | Y94: 31049.71379 | Z94: 53000 | AA94: 315 | AC94: 315 | AE94: 7.896423932 | AG94: 0.7151478278
Q95: 4900 | R95: 6872.27042 | S95: 6964.898358 | T95: 27681.79117 | U95: 2.497455269 | V95: 202664.8984 | W95: 241213.1204 | X95: 38548.22207 | Y95: 31675.95165 | Z95: 53000 | AA95: 315 | AC95: 315 | AE95: 7.866984096 | AG95: 0.7273249447
Q96: 5000 | R96: 6891.394333 | S96: 6991.57554 | T96: 27728.94181 | U96: 2.488430749 | V96: 202691.5755 | W96: 241884.3598 | X96: 39192.7843 | Y96: 32301.38997 | Z96: 53000 | AA96: 315 | AC96: 315 | AE96: 7.83855686 | AG96: 0.7394864962
Q97: 5100 | R97: 6910.492905 | S97: 7018.185792 | T97: 27776.04215 | U97: 2.479708931 | V97: 202718.1858 | W97: 242554.7098 | X97: 39836.52397 | Y97: 32926.03107 | Z97: 53000 | AA97: 315 | AC97: 315 | AE97: 7.811083132 | AG97: 0.7516325278
Q98: 5200 | R98: 6929.566213 | S98: 7044.729501 | T98: 27823.09244 | U98: 2.471272496 | V98: 202744.7295 | W98: 243224.173 | X98: 40479.44349 | Y98: 33549.87727 | Z98: 53000 | AA98: 315 | AC98: 315 | AE98: 7.784508363 | AG98: 0.7637630847
Q99: 5300 | R99: 6948.614338 | S99: 7071.207052 | T99: 27870.09293 | U99: 2.463105434 | V99: 202771.2071 | W99: 243892.7523 | X99: 41121.54522 | Y99: 34172.93088 | Z99: 53000 | AA99: 315 | AC99: 315 | AE99: 7.758782117 | AG99: 0.7758782117
Q100: 5400 | R100: 6967.637358 | S100: 7097.618825 | T100: 27917.04385 | U100: 2.455192918 | V100: 202797.6188 | W100: 244560.4504 | X100: 41762.83154 | Y100: 34795.19418 | Z100: 53000 | AA100: 315 | AC100: 315 | AE100: 7.733857693 | AG100: 0.7879779536
Q101: 5500 | R101: 6986.635349 | S101: 7123.965198 | T101: 27963.94544 | U101: 2.4475212 | V101: 202823.9652 | W101: 245227.27 | X101: 42403.3048 | Y101: 35416.66945 | Z101: 53000 | AA101: 315 | AC101: 315 | AE101: 7.709691781 | AG101: 0.8000623547
Q102: 5600 | R102: 7005.60839 | S102: 7150.246543 | T102: 28010.79795 | U102: 2.440077513 | V102: 202850.2465 | W102: 245893.2139 | X102: 43042.96732 | Y102: 36037.35893 | Z102: 53000 | AA102: 315 | AC102: 315 | AE102: 7.686244165 | AG102: 0.8121314589
Q103: 5700 | R103: 7024.556557 | S103: 7176.463232 | T103: 28057.60161 | U103: 2.432849983 | V103: 202876.4632 | W103: 246558.2847 | X103: 43681.82144 | Y103: 36657.26488 | Z103: 53000 | AA103: 315 | AC103: 315 | AE103: 7.663477445 | AG103: 0.8241853101
B104: Fuel vs Range | Q104: 5800 | R104: 7043.479925 | S104: 7202.615631 | T104: 28104.35666 | U104: 2.425827556 | V104: 202902.6156 | W104: 247222.4851 | X104: 44319.86945 | Y104: 37276.38952 | Z104: 53000 | AA104: 315 | AC104: 315 | AE104: 7.641356801 | AG104: 0.8362239518
Q105: 5900 | R105: 7062.378572 | S105: 7228.704105 | T105: 28151.06332 | U105: 2.418999927 | V105: 202928.7041 | W105: 247885.8177 | X105: 44957.11364 | Y105: 37894.73507 | Z105: 53000 | AA105: 315 | AC105: 315 | AE105: 7.619849769 | AG105: 0.8482474271
Q106: 6000 | R106: 7081.252571 | S106: 7254.729013 | T106: 28197.72184 | U106: 2.412357475 | V106: 202954.729 | W106: 248548.2853 | X106: 45593.55629 | Y106: 38512.30372 | Z106: 53000 | AA106: 315 | AC106: 315 | AE106: 7.598926048 | AG106: 0.860255779
Q107: 6100 | R107: 7100.101997 | S107: 7280.690713 | T107: 28244.33243 | U107: 2.405891213 | V107: 202980.6907 | W107: 249209.8904 | X107: 46229.19965 | Y107: 39129.09766 | Z107: 53000 | AA107: 315 | AC107: 315 | AE107: 7.57855732 | AG107: 0.8722490501
Q108: 6200 | R108: 7118.926925 | S108: 7306.58956 | T108: 28290.89533 | U108: 2.399592729 | V108: 203006.5896 | W108: 249870.6355 | X108: 46864.04599 | Y108: 39745.11906 | Z108: 53000 | AA108: 315 | AC108: 315 | AE108: 7.558717095 | AG108: 0.8842272828
Q109: 6300 | R109: 7137.727427 | S109: 7332.425904 | T109: 28337.41075 | U109: 2.393454146 | V109: 203032.4259 | W109: 250530.5234 | X109: 47498.09752 | Y109: 40360.37009 | Z109: 53000 | AA109: 315 | AC109: 315 | AE109: 7.539380559 | AG109: 0.8961905193
Q110: 6400 | R110: 7156.503578 | S110: 7358.200093 | T110: 28383.87894 | U110: 2.387468079 | V110: 203058.2001 | W110: 251189.5566 | X110: 48131.35647 | Y110: 40974.85289 | Z110: 53000 | AA110: 315 | AC110: 315 | AE110: 7.520524448 | AG110: 0.9081388013
Q111: 6500 | R111: 7175.25545 | S111: 7383.912473 | T111: 28430.30009 | U111: 2.381627596 | V111: 203083.9125 | W111: 251847.7375 | X111: 48763.82504 | Y111: 41588.56959 | Z111: 53000 | AA111: 315 | AC111: 315 | AE111: 7.502126929 | AG111: 0.9200721705
Q112: 6600 | R112: 7193.983114 | S112: 7409.563386 | T112: 28476.67444 | U112: 2.375926186 | V112: 203109.5634 | W112: 252505.0688 | X112: 49395.50542 | Y112: 42201.5223 | Z112: 53000 | AA112: 315 | AC112: 315 | AE112: 7.484167487 | AG112: 0.9319906682
Q113: 6700 | R113: 7212.686644 | S113: 7435.153169 | T113: 28523.00221 | U113: 2.370357725 | V113: 203135.1532 | W113: 253161.553 | X113: 50026.39979 | Y113: 42813.71314 | Z113: 53000 | AA113: 315 | AC113: 315 | AE113: 7.466626834 | AG113: 0.9438943356
Q114: 6800 | R114: 7231.366108 | S114: 7460.68216 | T114: 28569.2836 | U114: 2.364916448 | V114: 203160.6822 | W114: 253817.1925 | X114: 50656.51031 | Y114: 43425.1442 | Z114: 53000 | AA114: 315 | AC114: 315 | AE114: 7.44948681 | AG114: 0.9557832134
Q115: 6900 | R115: 7250.02158 | S115: 7486.150692 | T115: 28615.51884 | U115: 2.359596924 | V115: 203186.1507 | W115: 254471.9898 | X115: 51285.83913 | Y115: 44035.81755 | Z115: 53000 | AA115: 315 | AC115: 315 | AE115: 7.432730309 | AG115: 0.9676573421
Q116: 7000 | R116: 7268.653128 | S116: 7511.559095 | T116: 28661.70814 | U116: 2.354394032 | V116: 203211.5591 | W116: 255125.9475 | X116: 51914.3884 | Y116: 44645.73527 | Z116: 53000 | AA116: 315 | AC116: 315 | AE116: 7.4163412 | AG116: 0.9795167622
Q117: 7100 | R117: 7287.260824 | S117: 7536.907696 | T117: 28707.85171 | U117: 2.349302939 | V117: 203236.9077 | W117: 255779.0679 | X117: 52542.16023 | Y117: 45254.8994 | Z117: 53000 | AA117: 315 | AC117: 315 | AE117: 7.400304258 | AG117: 0.9913615137
Q118: 7200 | R118: 7305.844735 | S118: 7562.19682 | T118: 28753.94975 | U118: 2.34431908 | V118: 203262.1968 | W118: 256431.3536 | X118: 53169.15674 | Y118: 45863.312 | Z118: 53000 | AA118: 315 | AC118: 315 | AE118: 7.384605102 | AG118: 1.003191637
Q119: 7300 | R119: 7324.404931 | S119: 7587.426789 | T119: 28800.00249 | U119: 2.33943814 | V119: 203287.4268 | W119: 257082.8068 | X119: 53795.38002 | Y119: 46470.97509 | Z119: 53000 | AA119: 315 | AC119: 315 | AE119: 7.369230139 | AG119: 1.01500717
Q120: 7400 | R120: 7342.941482 | S120: 7612.597922 | T120: 28846.01011 | U120: 2.334656034 | V120: 203312.5979 | W120: 257733.4301 | X120: 54420.83216 | Y120: 47077.89068 | Z120: 53000 | AA120: 315 | AC120: 315 | AE120: 7.354166508 | AG120: 1.026808154
Q121: 7500 | R121: 7361.454454 | S121: 7637.710535 | T121: 28891.97284 | U121: 2.329968899 | V121: 203337.7105 | W121: 258383.2258 | X121: 55045.51524 | Y121: 47684.06079 | Z121: 53000 | AA121: 315 | AC121: 315 | AE121: 7.339402032 | AG121: 1.038594627
Q122: 7600 | R122: 7379.943915 | S122: 7662.764943 | T122: 28937.89087 | U122: 2.325373071 | V122: 203362.7649 | W122: 259032.1963 | X122: 55669.43132 | Y122: 48289.4874 | Z122: 53000 | AA122: 315 | AC122: 315 | AE122: 7.324925173 | AG122: 1.050366629
Q123: 7700 | R123: 7398.409933 | S123: 7687.761457 | T123: 28983.7644 | U123: 2.320865077 | V123: 203387.7615 | W123: 259680.3439 | X123: 56292.58244 | Y123: 48894.1725 | Z123: 53000 | AA123: 315 | AC123: 315 | AE123: 7.310724992 | AG123: 1.062124197
Q124: 7800 | R124: 7416.852574 | S124: 7712.700384 | T124: 29029.59364 | U124: 2.316441622 | V124: 203412.7004 | W124: 260327.671 | X124: 56914.97064 | Y124: 49498.11807 | Z124: 53000 | AA124: 315 | AC124: 315 | AE124: 7.296791108 | AG124: 1.073867371
Q125: 7900 | R125: 7435.271906 | S125: 7737.582032 | T125: 29075.37878 | U125: 2.312099576 | V125: 203437.582 | W125: 260974.18 | X125: 57536.59795 | Y125: 50101.32605 | Z125: 53000 | AA125: 315 | AC125: 315 | AE125: 7.283113665 | AG125: 1.085596188
Q126: 8000 | R126: 7453.667993 | S126: 7762.406703 | T126: 29121.12002 | U126: 2.307835968 | V126: 203462.4067 | W126: 261619.8731 | X126: 58157.46638 | Y126: 50703.79839 | Z126: 53000 | AA126: 315 | AC126: 315 | AE126: 7.269683298 | AG126: 1.097310686
B127: Fuel per Payload vs Range | Q127: 8100 | R127: 7472.040901 | S127: 7787.174698 | T127: 29166.81756 | U127: 2.303647969 | V127: 203487.1747 | W127: 262264.7526 | X127: 58777.57793 | Y127: 51305.53703 | Z127: 53000 | AA127: 315 | AC127: 315 | AE127: 7.256491103 | AG127: 1.109010904
Q128: 8200 | R128: 7490.390697 | S128: 7811.886316 | T128: 29212.47159 | U128: 2.299532892 | V128: 203511.8863 | W128: 262908.8209 | X128: 59396.9346 | Y128: 51906.5439 | Z128: 53000 | AA128: 315 | AC128: 315 | AE128: 7.243528609 | AG128: 1.120696879
Q129: 8300 | R129: 7508.717444 | S129: 7836.541852 | T129: 29258.0823 | U129: 2.295488175 | V129: 203536.5419 | W129: 263552.0802 | X129: 60015.53835 | Y129: 52506.8209 | Z129: 53000 | AA129: 315 | AC129: 315 | AE129: 7.230787753 | AG129: 1.132368648
Q130: 8400 | R130: 7527.021206 | S130: 7861.141601 | T130: 29303.64988 | U130: 2.291511381 | V130: 203561.1416 | W130: 264194.5328 | X130: 60633.39115 | Y130: 53106.36995 | Z130: 53000 | AA130: 315 | AC130: 315 | AE130: 7.218260852 | AG130: 1.144026248
Q131: 8500 | R131: 7545.302049 | S131: 7885.685853 | T131: 29349.17453 | U131: 2.287600186 | V131: 203585.6859 | W131: 264836.1808 | X131: 61250.49497 | Y131: 53705.19292 | Z131: 53000 | AA131: 315 | AC131: 315 | AE131: 7.205940585 | AG131: 1.155669716
Q132: 8600 | R132: 7563.560034 | S132: 7910.174896 | T132: 29394.65644 | U132: 2.283752371 | V132: 203610.1749 | W132: 265477.0266 | X132: 61866.85174 | Y132: 54303.29171 | Z132: 53000 | AA132: 315 | AC132: 315 | AE132: 7.19381997 | AG132: 1.167299089
Q133: 8700 | R133: 7581.795227 | S133: 7934.609018 | T133: 29440.09578 | U133: 2.279965824 | V133: 203634.609 | W133: 266117.0724 | X133: 62482.4634 | Y133: 54900.66817 | Z133: 53000 | AA133: 315 | AC133: 315 | AE133: 7.181892345 | AG133: 1.178914404
Q134: 8800 | R134: 7600.007689 | S134: 7958.988502 | T134: 29485.49275 | U134: 2.276238523 | V134: 203658.9885 | W134: 266756.3204 | X134: 63097.33186 | Y134: 55497.32418 | Z134: 53000 | AA134: 315 | AC134: 315 | AE134: 7.170151348 | AG134: 1.190515696
Q135: 8900 | R135: 7618.197483 | S135: 7983.31363 | T135: 29530.84753 | U135: 2.272568541 | V135: 203683.3136 | W135: 267394.7727 | X135: 63711.45905 | Y135: 56093.26157 | Z135: 53000 | AA135: 315 | AC135: 315 | AE135: 7.158590905 | AG135: 1.202103001
Q136: 9000 | R136: 7636.364671 | S136: 8007.584681 | T136: 29576.16031 | U136: 2.268954034 | V136: 203707.5847 | W136: 268032.4315 | X136: 64324.84686 | Y136: 56688.48219 | Z136: 53000 | AA136: 315 | AC136: 315 | AE136: 7.147205206 | AG136: 1.213676356
Q137: 9100 | R137: 7654.509315 | S137: 8031.801933 | T137: 29621.43126 | U137: 2.265393238 | V137: 203731.8019 | W137: 268669.2991 | X137: 64937.49717 | Y137: 57282.98786 | Z137: 53000 | AA137: 315 | AC137: 315 | AE137: 7.1359887 | AG137: 1.225235796
Q138: 9200 | R138: 7672.631475 | S138: 8055.96566 | T138: 29666.66056 | U138: 2.261884468 | V138: 203755.9657 | W138: 269305.3775 | X138: 65549.41187 | Y138: 57876.7804 | Z138: 53000 | AA138: 315 | AC138: 315 | AE138: 7.124936073 | AG138: 1.236781356
Q139: 9300 | R139: 7690.731214 | S139: 8080.076135 | T139: 29711.8484 | U139: 2.258426108 | V139: 203780.0761 | W139: 269940.669 | X139: 66160.59283 | Y139: 58469.86162 | Z139: 53000 | AA139: 315 | AC139: 315 | AE139: 7.11404224 | AG139: 1.248313072
Q140: 9400 | R140: 7708.808592 | S140: 8104.133629 | T140: 29756.99496 | U140: 2.255016613 | V140: 203804.1336 | W140: 270575.1755 | X140: 66771.04191 | Y140: 59062.23331 | Z140: 53000 | AA140: 315 | AC140: 315 | AE140: 7.10330233 | AG140: 1.259830979
Q141: 9500 | R141: 7726.863669 | S141: 8128.13841 | T141: 29802.1004 | U141: 2.251654501 | V141: 203828.1384 | W141: 271208.8993 | X141: 67380.76094 | Y141: 59653.89727 | Z141: 53000 | AA141: 315 | AC141: 315 | AE141: 7.092711678 | AG141: 1.271335112
Q142: 9600 | R142: 7744.896505 | S142: 8152.090745 | T142: 29847.16491 | U142: 2.248338352 | V142: 203852.0907 | W142: 271841.8425 | X142: 67989.75177 | Y142: 60244.85527 | Z142: 53000 | AA142: 315 | AC142: 315 | AE142: 7.082265809 | AG142: 1.282825505
Q143: 9700 | R143: 7762.907159 | S143: 8175.990897 | T143: 29892.18865 | U143: 2.245066805 | V143: 203875.9909 | W143: 272474.0071 | X143: 68598.01623 | Y143: 60835.10907 | Z143: 53000 | AA143: 315 | AC143: 315 | AE143: 7.071960436 | AG143: 1.294302193
Q144: 9800 | R144: 7780.895691 | S144: 8199.839128 | T144: 29937.17181 | U144: 2.241838553 | V144: 203899.8391 | W144: 273105.3953 | X144: 69205.55613 | Y144: 61424.66044 | Z144: 53000 | AA144: 315 | AC144: 315 | AE144: 7.061791442 | AG144: 1.30576521
Q145: 9900 | R145: 7798.86216 | S145: 8223.635699 | T145: 29982.11454 | U145: 2.238652342 | V145: 203923.6357 | W145: 273736.009 | X145: 69812.37328 | Y145: 62013.51112 | Z145: 53000 | AA145: 315 | AC145: 315 | AE145: 7.051754877 | AG145: 1.31721459
Q146: 10000 | R146: 7816.806624 | S146: 8247.380868 | T146: 30027.01703 | U146: 2.235506967 | V146: 203947.3809 | W146: 274365.8503 | X146: 70418.46948 | Y146: 62601.66285 | Z146: 53000 | AA146: 315 | AC146: 315 | AE146: 7.041846948 | AG146: 1.328650367
Q147: 10100 | R147: 7834.729142 | S147: 8271.074889 | T147: 30071.87945 | U147: 2.232401273 | V147: 203971.0749 | W147: 274994.9214 | X147: 71023.84651 | Y147: 63189.11737 | Z147: 53000 | AA147: 315 | AC147: 315 | AE147: 7.032064011 | AG147: 1.340072576
Q148: 10200 | R148: 7852.629771 | S148: 8294.718019 | T148: 30116.70195 | U148: 2.229334147 | V148: 203994.718 | W148: 275623.2242 | X148: 71628.50615 | Y148: 63775.87638 | Z148: 53000 | AA148: 315 | AC148: 315 | AE148: 7.022402564 | AG148: 1.351481248
Q149: 10300 | R149: 7870.508569 | S149: 8318.310507 | T149: 30161.4847 | U149: 2.226304521 | V149: 204018.3105 | W149: 276250.7607 | X149: 72232.45018 | Y149: 64361.94161 | Z149: 53000 | AA149: 315 | AC149: 315 | AE149: 7.01285924 | AG149: 1.362876418
B150: Breguet Range Factor vs Range | Q150: 10400 | R150: 7888.365593 | S150: 8341.852605 | T150: 30206.22788 | U150: 2.223311366 | V150: 204041.8526 | W150: 276877.5329 | X150: 72835.68034 | Y150: 64947.31475 | Z150: 53000 | AA150: 315 | AC150: 315 | AE150: 7.003430802 | AG150: 1.37425812
Q151: 10500 | R151: 7906.2009 | S151: 8365.34456 | T151: 30250.93165 | U151: 2.220353693 | V151: 204065.3446 | W151: 277503.543 | X151: 73438.19839 | Y151: 65531.99749 | Z151: 53000 | AA151: 315 | AC151: 315 | AE151: 6.994114133 | AG151: 1.385626385
Q152: 10600 | R152: 7924.014546 | S152: 8388.786618 | T152: 30295.59616 | U152: 2.21743055 | V152: 204088.7866 | W152: 278128.7927 | X152: 74040.00607 | Y152: 66115.99153 | Z152: 53000 | AA152: 315 | AC152: 315 | AE152: 6.984906233 | AG152: 1.396981247
Q153: 10700 | R153: 7941.806589 | S153: 8412.179024 | T153: 30340.22158 | U153: 2.214541021 | V153: 204112.179 | W153: 278753.2841 | X153: 74641.10512 | Y153: 66699.29853 | Z153: 53000 | AA153: 315 | AC153: 315 | AE153: 6.975804216 | AG153: 1.408322738
Q154: 10800 | R154: 7959.577083 | S154: 8435.522021 | T154: 30384.80808 | U154: 2.211684222 | V154: 204135.522 | W154: 279377.0193 | X154: 75241.49724 | Y154: 67281.92015 | Z154: 53000 | AA154: 315 | AC154: 315 | AE154: 6.9668053 | AG154: 1.419650891
Q155: 10900 | R155: 7977.326085 | S155: 8458.815847 | T155: 30429.3558 | U155: 2.208859303 | V155: 204158.8158 | W155: 280000 | X155: 75841.18415 | Y155: 67863.85807 | Z155: 53000 | AA155: 315 | AC155: 315 | AE155: 6.957906803 | AG155: 1.430965739
Q156: 11000 | R156: 7977.326085 | S156: 8459.538487 | T156: 30469.55644 | U156: 2.227678844 | V156: 203610.5189 | W156: 280000 | X156: 76389.48112 | Y156: 68412.15504 | Z156: 52450.98039 | AA156: 315 | AC156: 311.7369589 | AE156: 6.944498284 | AG156: 1.456397584
Q157: 11100 | R157: 7977.326085 | S157: 8460.447125 | T157: 30508.47255 | U157: 2.24696942 | V157: 203062.4079 | W157: 280000 | X157: 76937.59209 | Y157: 68960.26601 | Z157: 51901.96078 | AA157: 315 | AC157: 308.4739179 | AE157: 6.931314603 | AG157: 1.482363882
Q158: 11200 | R158: 7977.326085 | S158: 8461.534378 | T158: 30546.1275 | U158: 2.26674438 | V158: 202514.4756 | W158: 280000 | X158: 77485.52445 | Y158: 69508.19836 | Z158: 51352.94118 | AA158: 315 | AC158: 305.2108768 | AE158: 6.918350397 | AG158: 1.508881919
Q159: 11300 | R159: 7977.326085 | S159: 8462.793114 | T159: 30582.54406 | U159: 2.287017707 | V159: 201966.7147 | W159: 280000 | X159: 78033.28532 | Y159: 70055.95923 | Z159: 50803.92157 | AA159: 315 | AC159: 301.9478357 | AE159: 6.905600471 | AG159: 1.535969723
Q160: 11400 | R160: 7977.326085 | S160: 8464.216443 | T160: 30617.7444 | U160: 2.30780405 | V160: 201419.1184 | W160: 280000 | X160: 78580.8816 | Y160: 70603.55551 | Z160: 50254.90196 | AA160: 315 | AC160: 298.6847947 | AE160: 6.893059789 | AG160: 1.563646103
Q161: 11500 | R161: 7977.326085 | S161: 8465.797706 | T161: 30651.75015 | U161: 2.329118756 | V161: 200871.6801 | W161: 280000 | X161: 79128.31994 | Y161: 71150.99386 | Z161: 49705.88235 | AA161: 315 | AC161: 295.4217536 | AE161: 6.880723473 | AG161: 1.591930697
Q162: 11600 | R162: 7977.326085 | S162: 8467.530465 | T162: 30684.58237 | U162: 2.350977909 | V162: 200324.3932 | W162: 280000 | X162: 79675.60679 | Y162: 71698.2807 | Z162: 49156.86275 | AA162: 315 | AC162: 292.1587125 | AE162: 6.868586792 | AG162: 1.620844015
Q163: 11700 | R163: 7977.326085 | S163: 8469.408491 | T163: 30716.2616 | U163: 2.373398371 | V163: 199777.2516 | W163: 280000 | X163: 80222.74837 | Y163: 72245.42229 | Z163: 48607.84314 | AA163: 315 | AC163: 288.8956715 | AE163: 6.85664516 | AG163: 1.65040749
Q164: 11800 | R164: 7977.326085 | S164: 8471.425759 | T164: 30746.80788 | U164: 2.39639782 | V164: 199230.2493 | W164: 280000 | X164: 80769.75071 | Y164: 72792.42463 | Z164: 48058.82353 | AA164: 315 | AC164: 285.6326304 | AE164: 6.844894128 | AG164: 1.680643528
Q165: 11900 | R165: 7977.326085 | S165: 8473.576436 | T165: 30776.24074 | U165: 2.419994801 | V165: 198683.3804 | W165: 280000 | X165: 81316.61964 | Y165: 73339.29356 | Z165: 47509.80392 | AA165: 315 | AC165: 282.3695893 | AE165: 6.833329382 | AG165: 1.711575568
Q166: 12000 | R166: 7977.326085 | S166: 8475.854875 | T166: 30804.57923 | U166: 2.444208771 | V166: 198136.6392 | W166: 280000 | X166: 81863.36081 | Y166: 73886.03473 | Z166: 46960.78431 | AA166: 315 | AC166: 279.1065483 | AE166: 6.821946734 | AG166: 1.743228143
Q167: 12100 | R167: 7977.326085 | S167: 8478.255604 | T167: 30831.84193 | U167: 2.469060154 | V167: 197590.0203 | W167: 280000 | X167: 82409.97969 | Y167: 74432.65361 | Z167: 46411.76471 | AA167: 315 | AC167: 275.8435072 | AE167: 6.810742123 | AG167: 1.775626939
Q168: 12200 | R168: 7977.326085 | S168: 8480.773322 | T168: 30858.04697 | U168: 2.494570393 | V168: 197043.5184 | W168: 280000 | X168: 82956.48158 | Y168: 74979.15549 | Z168: 45862.7451 | AA168: 315 | AC168: 272.5804661 | AE168: 6.799711605 | AG168: 1.808798872
Q169: 12300 | R169: 7977.326085 | S169: 8483.402894 | T169: 30883.21203 | U169: 2.520762015 | V169: 196497.1284 | W169: 280000 | X169: 83502.87162 | Y169: 75525.54553 | Z169: 45313.72549 | AA169: 315 | AC169: 269.3174251 | AE169: 6.788851351 | AG169: 1.842772156
Q170: 12400 | R170: 7977.326085 | S170: 8486.139335 | T170: 30907.35437 | U170: 2.547658693 | V170: 195950.8452 | W170: 280000 | X170: 84049.15478 | Y170: 76071.8287 | Z170: 44764.70588 | AA170: 315 | AC170: 266.054384 | AE170: 6.778157644 | AG170: 1.877576388
Q171: 12500 | R171: 7977.326085 | S171: 8488.977814 | T171: 30930.49085 | U171: 2.575285318 | V171: 195404.6641 | W171: 280000 | X171: 84595.33591 | Y171: 76618.00983 | Z171: 44215.68627 | AA171: 315 | AC171: 262.791343 | AE171: 6.767626873 | AG171: 1.91324263
B172: Non-Cruise Fuel vs Range | Q172: 12600 | R172: 7977.326085 | S172: 8491.913643 | T172: 30952.6379 | U172: 2.603668071 | V172: 194858.5803 | W172: 280000 | X172: 85141.41969 | Y172: 77164.0936 | Z172: 43666.66667 | AA172: 315 | AC172: 259.5283019 | AE172: 6.757255531 | AG172: 1.949803504
Q173: 12700 | R173: 7977.326085 | S173: 8494.94227 | T173: 30973.81157 | U173: 2.632834505 | V173: 194312.5893 | W173: 280000 | X173: 85687.41067 | Y173: 77710.08459 | Z173: 43117.64706 | AA173: 315 | AC173: 256.2652608 | AE173: 6.74704021 | AG173: 1.98729329
Q174: 12800 | R174: 7977.326085 | S174: 8498.059278 | T174: 30994.02754 | U174: 2.662813633 | V174: 193766.6867 | W174: 280000 | X174: 86233.31327 | Y174: 78255.98719 | Z174: 42568.62745 | AA174: 315 | AC174: 253.0022198 | AE174: 6.736977599 | AG174: 2.025748032
Q175: 12900 | R175: 7977.326085 | S175: 8501.260373 | T175: 31013.30111 | U175: 2.693636022 | V175: 193220.8682 | W175: 280000 | X175: 86779.13178 | Y175: 78801.8057 | Z175: 42019.60784 | AA175: 315 | AC175: 249.7391787 | AE175: 6.727064479 | AG175: 2.065205656
Q176: 13000 | R176: 7977.326085 | S176: 8504.541388 | T176: 31031.64723 | U176: 2.725333895 | V176: 192675.1296 | W176: 280000 | X176: 87324.87038 | Y176: 79347.54429 | Z176: 41470.58824 | AA176: 315 | AC176: 246.4761376 | AE176: 6.717297721 | AG176: 2.105706094
Q177: 13100 | R177: 7977.326085 | S177: 8507.898269 | T177: 31049.08047 | U177: 2.757941237 | V177: 192129.4669 | W177: 280000 | X177: 87870.5331 | Y177: 79893.20702 | Z177: 40921.56863 | AA177: 315 | AC177: 243.2130966 | AE177: 6.707674283 | AG177: 2.147291417
Q178: 13200 | R178: 7977.326085 | S178: 8511.327078 | T178: 31065.61512 | U178: 2.791493918 | V178: 191583.8761 | W178: 280000 | X178: 88416.1239 | Y178: 80438.79782 | Z178: 40372.54902 | AA178: 315 | AC178: 239.9500555 | AE178: 6.698191205 | AG178: 2.190005983
Q179: 13300 | R179: 7977.326085 | S179: 8514.823982 | T179: 31081.26509 | U179: 2.826029821 | V179: 191038.3534 | W179: 280000 | X179: 88961.64661 | Y179: 80984.32052 | Z179: 39823.52941 | AA179: 315 | AC179: 236.6870144 | AE179: 6.68884561 | AG179: 2.233896591
Q180: 13400 | R180: 7977.326085 | S180: 8518.385254 | T180: 31096.04398 | U180: 2.861588979 | V180: 190492.8951 | W180: 280000 | X180: 89507.10494 | Y180: 81529.77886 | Z180: 39274.5098 | AA180: 315 | AC180: 233.4239734 | AE180: 6.679634697 | AG180: 2.279012657
Q181: 13500 | R181: 7977.326085 | S181: 8522.007268 | T181: 31109.96511 | U181: 2.898213731 | V181: 189947.4975 | W181: 280000 | X181: 90052.50254 | Y181: 82075.17645 | Z181: 38725.4902 | AA181: 315 | AC181: 230.1609323 | AE181: 6.670555743 | AG181: 2.325406395
Q182: 13600 | R182: 7977.326085 | S182: 8525.686493 | T182: 31123.04146 | U182: 2.93594888 | V182: 189402.1571 | W182: 280000 | X182: 90597.84292 | Y182: 82620.51683 | Z182: 38176.47059 | AA182: 315 | AC182: 226.8978912 | AE182: 6.661606097 | AG182: 2.373133019
Q183: 13700 | R183: 7977.326085 | S183: 8529.41949 | T183: 31135.28573 | U183: 2.974841878 | V183: 188856.8705 | W183: 280000 | X183: 91143.12953 | Y183: 83165.80344 | Z183: 37627.45098 | AA183: 315 | AC183: 223.6348502 | AE183: 6.652783177 | AG183: 2.422250967
Q184: 13800 | R184: 7977.326085 | S184: 8533.202912 | T184: 31146.71033 | U184: 3.014943018 | V184: 188311.6343 | W184: 280000 | X184: 91688.36572 | Y184: 83711.03963 | Z184: 37078.43137 | AA184: 315 | AC184: 220.3718091 | AE184: 6.644084472 | AG184: 2.472822132
Q185: 13900 | R185: 7977.326085 | S185: 8537.033494 | T185: 31157.32741 | U185: 3.056305646 | V185: 187766.4453 | W185: 280000 | X185: 92233.55474 | Y185: 84256.22866 | Z185: 36529.41176 | AA185: 315 | AC185: 217.108768 | AE185: 6.635507535 | AG185: 2.524912127
Q186: 14000 | R186: 7977.326085 | S186: 8540.908058 | T186: 31167.14882 | U186: 3.098986395 | V186: 187221.3002 | W186: 280000 | X186: 92778.69978 | Y186: 84801.3737 | Z186: 35980.39216 | AA186: 315 | AC186: 213.845727 | AE186: 6.627049985 | AG186: 2.578590566
Q187: 14100 | R187: 7977.326085 | S187: 8544.823503 | T187: 31176.18616 | U187: 3.143045437 | V187: 186676.1961 | W187: 280000 | X187: 93323.80395 | Y187: 85346.47786 | Z187: 35431.37255 | AA187: 315 | AC187: 210.5826859 | AE187: 6.6187095 | AG187: 2.633931379
Q188: 14200 | R188: 7977.326085 | S188: 8548.776804 | T188: 31184.45078 | U188: 3.188546761 | V188: 186131.1297 | W188: 280000 | X188: 93868.87025 | Y188: 85891.54417 | Z188: 34882.35294 | AA188: 315 | AC188: 207.3196448 | AE188: 6.610483821 | AG188: 2.691013144
Q189: 14300 | R189: 7977.326085 | S189: 8552.765012 | T189: 31191.95376 | U189: 3.235558479 | V189: 185586.0983 | W189: 280000 | X189: 94413.90165 | Y189: 86436.57557 | Z189: 34333.33333 | AA189: 315 | AC189: 204.0566038 | AE189: 6.602370745 | AG189: 2.749919466
Q190: 14400 | R190: 7977.326085 | S190: 8556.785249 | T190: 31198.70597 | U190: 3.284153156 | V190: 185041.099 | W190: 280000 | X190: 94958.90103 | Y190: 86981.57494 | Z190: 33784.31373 | AA190: 315 | AC190: 200.7935627 | AE190: 6.594368127 | AG190: 2.81073938
Q191: 14500 | R191: 7977.326085 | S191: 8560.834705 | T191: 31204.718 | U191: 3.334408181 | V191: 184496.1288 | W191: 280000 | X191: 95503.87118 | Y191: 87526.54509 | Z191: 33235.29412 | AA191: 315 | AC191: 197.5305216 | AE191: 6.586473874 | AG191: 2.873567805
Q192: 14600 | R192: 7977.326085 | S192: 8564.910636 | T192: 31210.00024 | U192: 3.38640617 | V192: 183951.1851 | W192: 280000 | X192: 96048.81485 | Y192: 88071.48877 | Z192: 32686.27451 | AA192: 315 | AC192: 194.2674806 | AE192: 6.578685949 | AG192: 2.938506033
Q193: 14700 | R193: 7977.326085 | S193: 8569.010363 | T193: 31214.56285 | U193: 3.44023541 | V193: 183406.2653 | W193: 280000 | X193: 96593.73473 | Y193: 88616.40865 | Z193: 32137.2549 | AA193: 315 | AC193: 191.0044395 | AE193: 6.571002363 | AG193: 3.005662277
Q194: 14800 | R194: 7977.326085 | S194: 8573.131267 | T194: 31218.41576 | U194: 3.495990353 | V194: 182861.3666 | W194: 280000 | X194: 97138.63344 | Y194: 89161.30735 | Z194: 31588.23529 | AA194: 315 | AC194: 187.7413984 | AE194: 6.563421178 | AG194: 3.075152269
B195: Reserve Fuel vs Range | Q195: 14900 | R195: 7977.326085 | S195: 8577.27079 | T195: 31221.56869 | U195: 3.55377216 | V195: 182316.4865 | W195: 280000 | X195: 97683.51352 | Y195: 89706.18744 | Z195: 31039.21569 | AA195: 315 | AC195: 184.4783574 | AE195: 6.555940505 | AG195: 3.14709993
Q196: 15000 | R196: 7977.326085 | S196: 8581.42643 | T196: 31224.03115 | U196: 3.613689302 | V196: 181771.6225 | W196: 280000 | X196: 98228.37749 | Y196: 90251.05141 | Z196: 30490.19608 | AA196: 315 | AC196: 181.2153163 | AE196: 6.548558499 | AG196: 3.221638104
Q197: 15100 | R197: 7977.326085 | S197: 8585.59574 | T197: 31225.81246 | U197: 3.675858235 | V197: 181226.7722 | W197: 280000 | X197: 98773.22779 | Y197: 90795.9017 | Z197: 29941.17647 | AA197: 315 | AC197: 177.9522752 | AE197: 6.541273364 | AG197: 3.298909376
Q198: 15200 | R198: 7977.326085 | S198: 8589.776329 | T198: 31226.92173 | U198: 3.740404137 | V198: 180681.9332 | W198: 280000 | X198: 99318.06681 | Y198: 91340.74072 | Z198: 29392.15686 | AA198: 309.3911249 | AC198: 174.6892342 | AE198: 6.534083343 | AG198: 3.379066983
Q199: 15300 | R199: 7977.326085 | S199: 8593.965855 | T199: 31227.36788 | U199: 3.807461746 | V199: 180137.1031 | W199: 280000 | X199: 99862.89689 | Y199: 91885.5708 | Z199: 28843.13725 | AA199: 303.6119711 | AC199: 171.4261931 | AE199: 6.526986725 | AG199: 3.462275827
Q200: 15400 | R200: 7977.326085 | S200: 8598.162026 | T200: 31227.15963 | U200: 3.877176278 | V200: 179592.2797 | W200: 280000 | X200: 100407.7203 | Y200: 92430.39424 | Z200: 28294.11765 | AA200: 297.8328173 | AC200: 168.1631521 | AE200: 6.519981839 | AG200: 3.548713608
Q201: 15500 | R201: 7977.326085 | S201: 8602.362598 | T201: 31226.30553 | U201: 3.949704471 | V201: 179047.4606 | W201: 280000 | X201: 100952.5394 | Y201: 92975.21328 | Z201: 27745.09804 | AA201: 292.0536636 | AC201: 164.900111 | AE201: 6.513067056 | AG201: 3.63857209
Q202: 15600 | R202: 7977.326085 | S202: 8606.565375 | T202: 31224.81396 | U202: 4.025215741 | V202: 178502.6438 | W202: 280000 | X202: 101497.3562 | Y202: 93520.03011 | Z202: 27196.07843 | AA202: 286.2745098 | AC202: 161.6370699 | AE202: 6.506240782 | AG202: 3.732058519
Q203: 15700 | R203: 7977.326085 | S203: 8610.768204 | T203: 31222.6931 | U203: 4.103893492 | V203: 177957.827 | W203: 280000 | X203: 102042.173 | Y203: 94064.84689 | Z203: 26647.05882 | AA203: 280.495356 | AC203: 158.3740289 | AE203: 6.499501463 | AG203: 3.82939722
Q204: 15800 | R204: 7977.326085 | S204: 8614.968975 | T204: 31219.95098 | U204: 4.185936583 | V204: 177413.0082 | W204: 280000 | X204: 102586.9918 | Y204: 94609.66572 | Z204: 26098.03922 | AA204: 274.7162023 | AC204: 155.1109878 | AE204: 6.492847583 | AG204: 3.930831392
Q205: 15900 | R205: 7977.326085 | S205: 8619.165622 | T205: 31216.59544 | U205: 4.271560991 | V205: 176868.1852 | W205: 280000 | X205: 103131.8148 | Y205: 95154.48869 | Z205: 25549.01961 | AA205: 268.9370485 | AC205: 151.8479467 | AE205: 6.486277659 | AG205: 4.036625137
Q206: 16000 | R206: 7977.326085 | S206: 8623.356116 | T206: 31212.63419 | U206: 4.361001687 | V206: 176323.3561 | W206: 280000 | X206: 103676.6439 | Y206: 95699.3178 | Z206: 25000 | AA206: 263.1578947 | AC206: 148.5849057 | AE206: 6.479790243 | AG206: 4.147065755
Q207: 16100 | R207: 7941.713022 | S207: 8586.483024 | T207: 31224.52348 | U207: 4.563637997 | V207: 175036.483 | W207: 278750 | X207: 103713.517 | Y207: 95771.80395 | Z207: 23750 | AA207: 250 | AC207: 141.1556604 | AE207: 6.441833353 | AG207: 4.366884925
... 12 more rows

Sheet Source
N4: Fuel volume | O4: 140795 | P4: l
N5: Density | O5: 0.7976135 | P5: kg/l
N6: Fuel mass | O6: =O4*O5 -> 112299.9927 | P6: kg
H49: WV010 taken for calculation.
J64: Data does not fit to Payload Range Diagram!
A76: Simple fuel equation for aircraft fuel consumption:
B81: A350-900
B82: WV010 | C82: WV013 (ULR)
A83: MTOW [kg] | B83: 280000 | C83: 280000
A84: MZFW [kg] | B84: 195700 | C84: 192000
A85: R [NM] | B85: 5885.5 | C85: 5885.5
A86: R [km] | B86: =B85*1.852 -> 10899.946 | C86: =C85*1.852 -> 10899.946
A87: n_seat | B87: 325 | C87: 325
A88: C [kg/100km] | B88: =(B83-B84)/B86/B87*100 -> 2.37968716 | C88: =(C83-C84)/C86/C87*100 -> 2.48413369 | D88: fuel consumption per 100 km and per seat

Sheet (c)
A2: Copyright © 2021
A3: Marcus Burzlaff (2017) and Dieter Scholz (2021)
A12: This is free software: you can redistribute it and/or modify
A13: it under the terms of the GNU General Public License as published by
A14: the Free Software Foundation, License Version 3.
A16: The software is distributed in the hope that it will be useful,
A17: but WITHOUT ANY WARRANTY; without even the implied warranty of
A18: MERCHANTABILITY or FITNESS FOR A PARTICULAR PURPOSE.
A19: See the GNU General Public License for more details.
A21: http://www.gnu.org/licenses/gpl.html
A23: Dataset:
A24: http://doi.org/10.7910/DVN/2HMEHB
A25: Publication:
A26: http://nbn-resolving.de/urn:nbn:de:gbv:18302-aero2017-12-13.019
A28: The related publication (project work) considers the reserves as part of the consumed fuel, which is wrong.
A29: Furthermore, it ignores the ADDITIONAL fuel consumed in take-off, climb, descend, landing, and taxi in.
A31: The current table considers this ADDITIONAL fuel consumption.
A32: The current table considers the reserves NOT as fuel consumption.
A34: When opening the table the data of the Airbus A350-900 is shown.
